bitfinex-derivatives/quotes_SOLF0:USTF0_20241217
["timestamp","ask_amount","ask_price","bid_price","bid_amount"]
[1734460846902,6.45597368,228.67,228.65,1.9238]
[1734460847711,8.0862,228.85,228.65,1.9238]
[1734460848007,10.09804487,228.77,228.65,1.9238]
[1734460848206,2.56,228.76,228.68,2.1858]
[1734460848512,5.31855618,228.73,228.66,2.0112]
[1734460848805,7.50395618,228.73,228.67,2.1859]
[1734460851904,5.31855618,228.73,228.68,2.1858]
[1734460857008,2.46,228.72,228.68,2.1858]
[1734460857909,2.46,228.72,228.66,2.0112]
[1734460858110,2.46,228.72,228.69,2.1858]
[1734460858608,4.6455,228.72,228.67,2.186]
[1734460860814,2.46,228.72,228.71,2.1856]
[1734460861015,10.09804487,228.77,228.66,47.96618983]
[1734460861212,2.46,228.76,228.67,87.80273948]
[1734460861412,2.46,228.75,228.73,2.1853]
[1734460861611,2.46,228.77,228.73,2.1853]
[1734460862307,10.09804487,228.8,228.7,1.9757]
[1734460862511,12.28254487,228.83,228.71,15.93222577]
[1734460862711,8.79121744,228.82,228.72,15.93024867]
[1734460862916,3.75646375,228.81,228.71,47.96618983]
[1734460863114,3.75646375,228.8,228.72,15.9299733]
[1734460863322,3.75646375,228.79,228.7,1.9757]
[1734460863524,10.09804487,228.77,228.7,1.9757]
[1734460863812,2.1853,228.74,228.69,2.0124]
[1734460864213,2.46,228.76,228.7,18.13302085]
[1734460864405,3.76013883,228.75,228.7,2.1857]
[1734460864606,4.6452,228.76,228.7,2.1857]
[1734460864812,3.76014964,228.75,228.69,2.0124]
[1734460865015,2.1852,228.75,228.7,15.94786727]
[1734460865210,2.1852,228.75,228.69,52.16438983]
[1734460865411,2.1852,228.75,228.7,15.95379414]
[1734460865607,5.94747942,228.74,228.69,2.0124]
[1734460865815,10.09804487,228.74,228.67,47.96618983]
[1734460866013,6.34140055,228.73,228.65,49.88998983]
[1734460866217,2.1856,228.71,228.66,15.96191721]
[1734460866419,2.46,228.7,228.65,49.88998983]
[1734460866614,2.46,228.7,228.66,15.9664]
[1734460866818,4.6458,228.7,228.65,49.88998983]
[1734460867015,2.46,228.7,228.65,1.9238]
[1734460867210,10.09804487,228.68,228.65,1.9238]
[1734460867412,10.09804487,228.68,228.63,47.96618983]
[1734460867725,10.09804487,228.65,228.6,47.96618983]
[1734460867915,2.46,228.67,228.61,87.9139305]
[1734460868117,2.46,228.67,228.62,87.91129118]
[1734460868418,2.46,228.67,228.63,15.97948103]
[1734460868619,2.46,228.67,228.61,47.96618983]
[1734460868818,2.46,228.67,228.62,15.9754859]
[1734460869022,2.1862,228.65,228.6,47.96618983]
[1734460869209,2.1862,228.65,228.59,1.8399]
[1734460869411,2.1862,228.65,228.6,15.97481848]
[1734460869619,2.1862,228.65,228.59,1.8399]
[1734460869921,4.6461,228.67,228.6,15.97694781]
[1734460870214,2.46,228.67,228.61,15.97472761]
[1734460870420,2.46,228.67,228.6,47.96618983]
[1734460870719,2.46,228.66,228.61,15.97066986]
[1734460871015,2.46,228.71,228.64,215.73559243]
[1734460871216,12.55804487,228.71,228.66,143.88854]
[1734460871419,2.1859,228.69,228.65,263.70178226]
[1734460871614,12.55804487,228.71,228.65,143.88854]
[1734460871814,12.55804487,228.71,228.65,263.70178226]
[1734460872112,12.55804487,228.71,228.65,239.66737744]
[1734460872309,2.1862,228.65,228.64,263.70178226]
[1734460872511,2.1862,228.65,228.56,237.58238029]
[1734460872512,12.55804487,228.65,228.6,263.70178226]
[1734460873019,12.55804487,228.65,228.59,263.70178226]
[1734460873415,2.1863,228.64,228.58,263.70178226]
[1734460873618,2.1863,228.64,228.59,385.83006822]
[1734460873818,2.1864,228.63,228.59,305.81498432]
[1734460874019,2.1864,228.63,228.59,263.70178226]
[1734460874518,2.1864,228.63,228.58,263.70178226]
[1734460875617,2.46,228.65,228.62,263.70178226]
[1734460875813,10.09804487,228.69,228.62,263.70178226]
[1734460876019,2.46,228.68,228.63,2.1863]
[1734460876218,2.46,228.68,228.63,267.89028226]
[1734460876412,2.1855,228.72,228.66,263.70178226]
[1734460876413,10.09804487,228.72,228.66,263.70178226]
[1734460876614,2.46,228.71,228.66,263.70178226]
[1734460877920,2.46,228.71,228.66,18.02580362]
[1734460878111,10.09804487,228.69,228.64,265.60328226]
[1734460878815,10.09804487,228.66,228.63,82.06370358]
[1734460879016,10.09804487,228.64,228.43,313.42735953]
[1734460879319,10.09804487,228.55,228.47,2.1878]
[1734460879510,10.09804487,228.55,228.47,2.46]
[1734460879713,97.71324631,228.54,228.47,2.46]
[1734460879913,91.59704631,228.54,228.48,3.7524]
[1734460880115,91.59704631,228.54,228.46,3.88802246]
[1734460880312,361.97364223,228.53,228.46,3.88802246]
[1734460880521,361.97364223,228.53,228.51,2.1874]
[1734460880917,361.97364223,228.53,228.52,2.46]
[1734460882715,361.97364223,228.53,228.52,4.6474]
[1734460882915,348.63784223,228.53,228.52,2.1874]
[1734460883316,348.63784223,228.53,228.52,4.7274]
[1734460883521,348.63784223,228.53,228.52,2.1874]
[1734460883721,348.63784223,228.53,228.52,4.7274]
[1734460884924,348.63784223,228.53,228.51,2.1874]
[1734460885427,348.63784223,228.53,228.52,2.54]
[1734460885923,2.1868,228.58,228.52,4.7274]
[1734460887429,2.1869,228.57,228.52,4.7274]
[1734460888534,16.17952018,228.55,228.39,15.67803141]
[1734460888729,16.17952018,228.49,228.38,2.54]
[1734460888929,3.8015,228.56,228.39,2.54]
[1734460889135,3.8015,228.56,228.37,1.9436]
[1734460889136,2.1876,228.5,228.42,2.1883]
[1734460889332,2.1876,228.5,228.37,1.9436]
[1734460889333,16.17952018,228.54,228.43,2.54]
[1734460889535,2.57779826,228.53,228.44,2.54]
[1734460889734,2.1875,228.52,228.45,2.54]
[1734460890036,16.17952018,228.54,228.46,2.54]
[1734460890242,2.57821002,228.53,228.46,2.54]
[1734460890530,16.17952018,228.54,228.41,2.1884]
[1734460890733,16.17952018,228.54,228.26,15.67803141]
[1734460890734,16.17952018,228.42,228.27,15.67803141]
[1734460890936,2.1894,228.32,228.21,2.1903]
[1734460891135,2.1894,228.32,228.16,3.8927]
[1734460891337,16.17952018,228.33,228.17,2.54]
[1734460891540,2.1891,228.35,228.18,5.36111055]
[1734460892045,2.1891,228.35,228.23,2.1902]
[1734460892237,2.1891,228.35,228.24,2.54]
[1734460892433,2.1891,228.35,228.25,2.54]
[1734460892844,2.1891,228.34,228.25,2.54]
[1734460893345,2.1892,228.33,228.25,2.54]
[1734460893641,16.17952018,228.33,228.24,2.54]
[1734460893831,16.17952018,228.33,228.21,2.54]
[1734460894034,2.1898,228.27,228.19,2.54]
[1734460895138,16.17952018,228.29,228.16,3.8927]
[1734460895333,16.17952018,228.29,228.17,2.54]
[1734460896335,16.17952018,228.29,228.18,2.54]
[1734460896544,16.17952018,228.25,228.13,12.0]
[1734460897042,18.71952018,228.25,228.13,12.0]
[1734460898444,16.17952018,228.21,228.13,12.0]
[1734460898946,16.17952018,228.25,228.13,14.191]
[1734460899143,16.17952018,228.25,228.13,12.0]
[1734460899345,2.1902,228.23,228.13,12.0]
[1734460899745,18.36962018,228.25,228.15,2.1909]
[1734460900043,1.9053,228.28,228.13,12.0]
[1734460900739,1.9053,228.28,228.18,2.1906]
[1734460900740,4.095,228.28,228.18,2.1906]
[1734460900944,4.095,228.28,228.18,4.7306]
[1734460902249,2.1897,228.28,228.18,4.7306]
[1734460902848,2.1897,228.28,228.18,2.54]
[1734460903051,16.17952018,228.29,228.18,2.54]
[1734460903352,2.1895,228.3,228.19,1.8413]
[1734460903552,5.17549718,228.28,228.19,3.6975]
[1734460903744,2.1898,228.27,228.19,3.6975]
[1734460904251,5.17549718,228.28,228.18,2.54]
[1734460904549,2.19,228.25,228.18,2.54]
[1734460905450,5.17549718,228.28,228.18,2.54]
[1734460906449,5.17549718,228.28,228.22,2.1903]
[1734460912349,7.36519718,228.28,228.2,4.7304]
[1734460913354,5.17549718,228.28,228.2,2.54]
[1734460914456,10.13933076,228.27,228.2,2.54]
[1734460915556,10.13933076,228.27,228.22,2.1904]
[1734460915857,10.13933076,228.27,228.2,2.54]
[1734460916049,10.13933076,228.27,228.22,2.1905]
[1734460916650,10.13933076,228.27,228.2,2.54]
[1734460917250,10.13933076,228.27,228.22,2.1905]
[1734460922670,12.32943076,228.27,228.21,2.1906]
[1734460924268,2.1901,228.26,228.21,2.1906]
[1734460924966,10.13933076,228.24,228.16,2.56]
[1734460925367,10.13933076,228.24,228.14,2.56]
[1734460925668,2.1906,228.22,228.17,2.1909]
[1734460926368,10.13933076,228.24,228.17,2.1909]
[1734460926567,2.1906,228.21,228.17,2.1909]
[1734460928073,10.13933076,228.27,228.14,2.56]
[1734460928367,10.13933076,228.33,228.14,12.69933076]
[1734460928563,2.1895,228.33,228.29,2.1898]
[1734460928761,2.1895,228.33,228.26,2.56]
[1734460928964,2.1895,228.33,228.29,12.0]
[1734460929163,5.37264845,228.32,228.29,12.0]
[1734460929375,2.1895,228.33,228.29,14.1898]
[1734460929672,10.13933076,228.33,228.29,12.0]
[1734460930067,2.1897,228.3,228.29,12.0]
[1734460931673,12.32903076,228.3,228.29,12.0]
[1734460932673,10.13933076,228.3,228.22,2.56]
[1734460932876,10.13933076,228.3,228.21,409.79828651]
[1734460933374,2.19,228.28,228.21,409.79828651]
[1734460933571,2.19,228.28,228.21,2.1905]
[1734460933976,2.19,228.28,228.2,407.60778651]
[1734460934171,10.13933076,228.3,228.21,536.60722621]
[1734460934376,2.1896,228.31,228.22,536.60408249]
[1734460934571,2.1896,228.31,228.24,2.1903]
[1734460935074,10.13933076,228.33,228.24,2.1903]
[1734460935276,2.1897,228.3,228.24,2.1903]
[1734460935973,10.13933076,228.33,228.23,407.60778651]
[1734460936179,5.15437639,228.34,228.26,407.60778651]
[1734460936472,5.15437639,228.34,228.3,2.1897]
[1734460939374,2.1895,228.33,228.27,773.47196266]
[1734460939577,5.15437639,228.34,228.27,359.80652561]
[1734460939878,5.15437639,228.34,228.25,773.47196266]
[1734460940273,2.1896,228.32,228.27,2.19]
[1734460940678,2.1896,228.32,228.25,1013.44587582]
[1734460940679,5.15437639,228.34,228.25,1013.44587582]
[1734460940876,2.189,228.38,228.33,2.1894]
[1734460941081,10.13933076,228.41,228.3,596.0982172]
[1734460941273,10.13933076,228.41,228.3,776.03196266]
[1734460941783,10.13933076,228.41,228.33,2.1894]
[1734460943181,3.924,228.44,228.31,596.01918251]
[1734460943387,10.13933076,228.45,228.34,246.16109302]
[1734460943587,10.13933076,228.45,228.34,593.59918251]
[1734460943785,10.13933076,228.45,228.34,595.57238251]
[1734460943981,12.32763076,228.45,228.34,775.44516266]
[1734460944184,10.13933076,228.45,228.34,775.44516266]
[1734460944688,5.37205184,228.43,228.34,775.44516266]
[1734460944885,5.37205184,228.43,228.34,361.77972561]
[1734460945087,5.37205184,228.43,228.34,1.9732]
[1734460945285,5.37205184,228.43,228.34,415.63863705]
[1734460945489,2.1887,228.41,228.35,2.1892]
[1734460946579,2.1887,228.41,228.36,2.1891]
[1734460946791,2.1887,228.41,228.34,1.9732]
[1734460947882,2.1887,228.41,228.34,265.73064447]
[1734460948485,2.1887,228.41,228.36,2.1891]
[1734460949484,2.189,228.38,228.34,1.9732]
[1734460949886,5.37205184,228.43,228.34,1.9732]
[1734460950287,2.1887,228.41,228.36,2.1891]
[1734460950489,5.37205184,228.43,228.37,2.42]
[1734460951492,5.37205184,228.43,228.38,1.09507906]
[1734460951792,5.37205184,228.43,228.39,1.09507906]
[1734460951989,5.37205184,228.43,228.37,2.42]
[1734460952189,5.37205184,228.43,228.38,1.09507537]
[1734460952390,7.56055184,228.43,228.38,3.28397537]
[1734460952591,7.56055184,228.43,228.38,2.1889]
[1734460952992,5.37205184,228.43,228.39,2.1888]
[1734460953194,5.37205184,228.43,228.35,143.84415705]
[1734460953388,5.37205184,228.43,228.36,2.42]
[1734460953693,5.37205184,228.43,228.37,1.09510079]
[1734460953897,5.37205184,228.43,228.36,2.42]
[1734460954097,10.13933076,228.48,228.37,1.09508983]
[1734460954291,10.13933076,228.48,228.38,1.09508983]
[1734460954492,10.13933076,228.48,228.38,413.66543705]
[1734460954689,10.13933076,228.51,228.39,469.62642293]
[1734460954888,13.97043076,228.54,228.4,541.62322817]
[1734460955192,2.1877,228.51,228.41,394.13523559]
[1734460955387,2.1877,228.51,228.41,416.08543705]
[1734460955594,2.1877,228.51,228.42,391.63380166]
[1734460955797,2.1877,228.51,228.42,413.66543705]
[1734460956400,2.1877,228.51,228.45,2.1882]
[1734460956588,5.20827609,228.5,228.42,263.75744447]
[1734460956789,5.20827609,228.5,228.42,273.89677523]
[1734460957197,5.20827609,228.5,228.43,227.57110209]
[1734460957396,12.55933076,228.57,228.47,2.1881]
[1734460957594,10.13933076,228.57,228.46,2.42]
[1734460957790,5.2308548,228.58,228.54,2.1874]
[1734460958097,2.1868,228.61,228.52,2.42]
[1734460958894,2.1868,228.61,228.55,2.1873]
[1734460959296,12.32593076,228.63,228.52,2.42]
[1734460959501,12.32593076,228.63,228.53,2.0157]
[1734460959897,12.32593076,228.63,228.56,2.1872]
[1734460960197,10.13933076,228.63,228.56,2.1872]
[1734460960394,2.1867,228.62,228.56,2.1872]
[1734460960599,7.57151166,228.62,228.56,2.1872]
[1734460960793,5.38481166,228.62,228.53,2.0157]
[1734460961203,5.38481166,228.62,228.53,1.84314717]
[1734460962401,2.187,228.59,228.53,1.84314717]
[1734460962809,5.38481166,228.62,228.53,1.84314717]
[1734460963112,5.38481166,228.62,228.56,2.1872]
[1734460963909,7.57151166,228.62,228.56,2.1872]
[1734460964810,2.1865,228.65,228.57,2.1871]
[1734460965003,5.36384807,228.64,228.53,1.84314717]
[1734460965908,2.1867,228.62,228.53,1.84314717]
[1734460966211,10.13933076,228.63,228.53,1.84314717]
[1734460966511,2.187,228.58,228.53,1.84314717]
[1734460966703,10.13933076,228.63,228.53,1.84314717]
[1734460967308,2.187,228.59,228.53,4.03064717]
[1734460968516,10.13933076,228.63,228.53,1.84314717]
[1734460968715,2.1869,228.6,228.53,1.84314717]
[1734460969014,10.13933076,228.63,228.53,1.84314717]
[1734460969617,2.1868,228.6,228.54,2.1873]
[1734460970010,10.13933076,228.63,228.53,1.84314717]
[1734460970310,5.36384807,228.64,228.53,3.84214717]
[1734460970714,2.1867,228.62,228.56,2.1872]
[1734460970915,5.36384807,228.64,228.56,2.1872]
[1734460971114,10.13933076,228.63,228.53,3.84214717]
[1734460971318,2.1871,228.58,228.53,6.02964717]
[1734460971911,10.13933076,228.63,228.53,3.84214717]
[1734460973417,2.1868,228.6,228.54,2.1874]
[1734460974814,2.1868,228.6,228.53,3.84214717]
[1734460975019,2.1868,228.6,228.55,2.1873]
[1734460975214,22.29785488,229.33,228.53,3.84214717]
[1734460975215,50.1,228.82,228.57,10.13933076]
[1734460975422,10.13933076,228.72,228.58,122.4920946]
[1734460975620,10.13933076,228.72,228.58,74.18546565]
[1734460976119,10.13933076,228.72,228.58,146.20415705]
[1734460976421,10.13933076,228.72,228.61,2.1867]
[1734460977427,2.1862,228.67,228.61,2.1867]
[1734460980625,10.13933076,228.65,228.58,149.90799258]
[1734460980824,10.13933076,228.65,228.54,265.94474447]
[1734460981224,2.1868,228.61,228.54,415.85273705]
[1734460981423,2.1868,228.61,228.54,265.94474447]
[1734460981925,2.1869,228.6,228.54,2.1873]
[1734460983123,2.187,228.59,228.51,413.66543705]
[1734460983325,12.49933076,228.62,228.5,413.66543705]
[1734460983623,12.49933076,228.62,228.49,266.11744447]
[1734460984124,12.49933076,228.62,228.5,391.36714924]
[1734460984427,12.49933076,228.62,228.5,263.75744447]
[1734460984821,12.49933076,228.62,228.51,391.42558108]
[1734460985020,10.13933076,228.62,228.5,263.75744447]
[1734460985226,10.13933076,228.62,228.49,266.11744447]
[1734460985526,10.13933076,228.62,228.49,2.36]
[1734460985527,2.1875,228.54,228.49,2.36]
[1734460985723,10.13933076,228.59,228.48,263.75744447]
[1734460985922,10.13933076,228.59,228.47,266.11744447]
[1734460986626,2.1875,228.54,228.47,418.21353705]
[1734460987026,2.1875,228.54,228.47,4.5481]
[1734460988028,2.1875,228.53,228.47,4.5481]
[1734460988826,2.1875,228.53,228.47,2.36]
[1734460989030,10.13933076,228.59,228.47,2.36]
[1734460989626,2.1876,228.53,228.47,2.36]
[1734460990929,2.1876,228.53,228.47,4.5481]
[1734460991530,2.1874,228.54,228.48,2.1879]
[1734460991930,2.1874,228.54,228.48,415.85333705]
[1734460992132,2.1874,228.54,228.48,2.1879]
[1734460992631,2.36,228.61,228.47,595.95918251]
[1734460992930,5.31499286,228.55,228.46,593.59918251]
[1734460993127,5.31499286,228.55,228.46,179.93374546]
[1734460993332,5.31499286,228.55,228.45,2.36]
[1734460993636,5.31499286,228.55,228.45,416.02543705]
[1734460993934,15.45432362,228.55,228.45,179.93374546]
[1734460994134,10.13933076,228.52,228.42,179.93374546]
[1734460994331,2.1884,228.44,228.4,600.33108251]
[1734460994532,10.13933076,228.52,228.4,179.93374546]
[1734460994732,10.13933076,228.52,228.39,416.02543705]
[1734460995032,10.13933076,228.52,228.39,2.36]
[1734460995528,10.13933076,228.52,228.39,4.5489]
[1734460995726,6.5466,228.54,228.42,10.13933076]
[1734460995923,6.5466,228.54,228.43,199.32857346]
[1734460996124,4.5259,228.54,228.44,543.96606365]
[1734460996322,5.31499286,228.55,228.44,543.96606365]
[1734460996323,5.31499286,228.55,228.45,551.72475591]
[1734460996525,5.31499286,228.55,228.46,541.57695384]
[1734460996825,5.31499286,228.55,228.46,413.66543705]
[1734460997029,2.1875,228.54,228.48,2.188]
[1734460997230,5.31499286,228.55,228.46,413.66543705]
[1734460998135,2.1876,228.53,228.46,415.85353705]
[1734460998323,5.31499286,228.55,228.45,72.0186914]
[1734460998528,5.31499286,228.55,228.44,416.02543705]
[1734460998731,5.31499286,228.55,228.44,595.95918251]
[1734460999125,10.13933076,228.53,228.44,2.36]
[1734460999330,2.1882,228.47,228.44,2.36]
[1734461000935,2.1882,228.47,228.41,8.8116]
[1734461003936,10.13933076,228.53,228.4,24.23440904]
[1734461004234,10.13933076,228.5,228.38,24.23440904]
[1734461004434,2.36,228.49,228.37,4.4754]
[1734461005639,10.13933076,228.47,228.37,4.4754]
[1734461005835,2.1879,228.5,228.43,2.1884]
[1734461006037,2.1231,228.52,228.43,2.1884]
[1734461006539,2.1879,228.49,228.43,2.1884]
[1734461006734,2.1231,228.52,228.44,2.1884]
[1734461006930,7.5938714,228.54,228.42,12.49933076]
[1734461007133,5.2338714,228.54,228.5,2.1878]
[1734461007741,5.2338714,228.54,228.45,10.17695054]
[1734461007943,5.2338714,228.54,228.49,2.1879]
[1734461010640,7.4213714,228.54,228.48,2.188]
[1734461011939,5.2338714,228.54,228.5,2.1878]
[1734461012142,5.2338714,228.54,228.45,417.78473705]
[1734461012439,5.2338714,228.54,228.46,3.106]
[1734461012646,7.4212714,228.54,228.49,2.1879]
[1734461019554,6.4745569,228.53,228.47,593.59918251]
[1734461019754,2.0846,228.63,228.51,6.4745569]
[1734461019957,11.69444212,228.59,228.53,6.4745569]
[1734461020451,6.4745569,228.57,228.51,2.1877]
[1734461020659,6.4745569,228.55,228.5,2.36]
[1734461021454,8.6619569,228.55,228.5,2.36]
[1734461021648,5.21988522,228.59,228.5,2.36]
[1734461021846,5.21988522,228.59,228.51,6.4745569]
[1734461022047,2.2086,228.67,228.57,6.4745569]
[1734461022355,6.4745569,228.66,228.59,6.4745569]
[1734461022551,8.6611569,228.64,228.58,2.36]
[1734461023647,7.00910406,228.75,228.61,6.4745569]
[1734461023850,8.6606569,228.68,228.61,6.4745569]
[1734461024051,6.4745569,228.71,228.63,6.4745569]
[1734461024254,6.4745569,228.71,228.64,2.36]
[1734461024655,8.6603569,228.71,228.64,2.36]
[1734461024855,8.6603569,228.71,228.65,6.4745569]
[1734461025057,2.1858,228.71,228.65,6.4745569]
[1734461025562,6.4745569,228.72,228.65,6.4745569]
[1734461025862,2.1857,228.72,228.65,8.6609569]
[1734461026058,7.4901452,228.72,228.65,2.1864]
[1734461026661,2.1854,228.75,228.68,2.1861]
[1734461026966,2.1854,228.75,228.69,2.36]
[1734461027261,2.1854,228.75,228.7,2.36]
[1734461028359,10.09988871,228.8,228.7,2.36]
[1734461028663,2.1853,228.77,228.7,4.5459]
[1734461029066,2.1852,228.78,228.71,2.1857]
[1734461029860,2.1856,228.73,228.69,2.36]
[1734461030670,2.1853,228.77,228.69,2.36]
[1734461030863,5.28911051,228.78,228.69,2.36]
[1734461031465,10.09988871,228.77,228.69,2.36]
[1734461031766,2.1858,228.71,228.65,2.8421]
[1734461032067,10.09988871,228.77,228.67,2.36]
[1734461032868,2.1855,228.74,228.65,5.0284]
[1734461033064,10.09988871,228.77,228.66,2.36]
[1734461033768,2.1858,228.71,228.66,2.36]
[1734461033963,10.09988871,228.77,228.66,2.36]
[1734461034865,2.36,228.87,228.69,10.09988871]
[1734461035065,10.09988871,228.84,228.69,10.09988871]
[1734461035566,2.185,228.79,228.72,2.1857]
[1734461035767,2.185,228.79,228.73,2.36]
[1734461038170,2.1851,228.78,228.73,2.36]
[1734461038875,5.23172664,228.79,228.69,10.09988871]
[1734461039071,5.23172664,228.79,228.65,8.89975054]
[1734461039072,5.23172664,228.79,228.7,2.36]
[1734461039276,10.09988871,228.78,228.7,2.36]
[1734461039572,2.1858,228.72,228.7,2.36]
[1734461039771,10.09988871,228.78,228.65,2.8421]
[1734461040069,10.09988871,228.78,228.66,2.36]
[1734461040577,10.09988871,228.75,228.65,2.36]
[1734461040979,2.1863,228.66,228.65,2.36]
[1734461041274,2.1863,228.66,228.62,2.36]
[1734461041874,2.1864,228.65,228.58,2.9905]
[1734461042075,10.09988871,228.72,228.6,10.09988871]
[1734461042280,2.9462,228.74,228.6,10.09988871]
[1734461043174,2.186,228.69,228.62,2.1866]
[1734461043778,2.186,228.69,228.63,2.1865]
[1734461043969,2.186,228.69,228.64,2.36]
[1734461044881,2.1861,228.68,228.64,2.36]
[1734461045567,2.1863,228.66,228.64,2.36]
[1734461045770,2.9462,228.74,228.64,2.36]
[1734461046171,10.09988871,228.72,228.62,2.36]
[1734461046371,10.09988871,228.72,228.58,2.9905]
[1734461046567,2.1863,228.66,228.57,60.05094532]
[1734461046772,10.09988871,228.69,228.57,2.36]
[1734461047075,2.1862,228.68,228.61,2.1867]
[1734461047276,2.1862,228.68,228.6,10.09988871]
[1734461047878,5.3406,228.71,228.6,10.09988871]
[1734461048070,5.3406,228.71,228.6,12.28668871]
[1734461048275,5.3406,228.71,228.58,263.75744447]
[1734461048482,2.1865,228.65,228.58,2.187]
[1734461048678,5.3406,228.71,228.57,266.11744447]
[1734461048679,10.09988871,228.69,228.57,266.11744447]
[1734461048874,10.09988871,228.69,228.57,2.36]
[1734461049270,2.1863,228.66,228.57,2.36]
[1734461049475,10.09988871,228.69,228.57,2.36]
[1734461049981,10.09988871,228.69,228.56,8.4568]
[1734461050174,5.3406,228.71,228.58,10.09988871]
[1734461051277,2.9806,228.71,228.58,273.85733318]
[1734461051479,2.9806,228.71,228.61,2.1867]
[1734461051480,2.1862,228.67,228.61,2.1867]
[1734461051781,2.1862,228.67,228.61,4.5467]
[1734461052782,2.9806,228.71,228.61,2.36]
[1734461053184,2.1861,228.68,228.61,2.36]
[1734461053382,2.9806,228.71,228.61,2.36]
[1734461054283,2.1863,228.67,228.61,2.36]
[1734461054484,10.09988871,228.66,228.57,413.66543705]
[1734461054686,10.09988871,228.6,228.53,413.66543705]
[1734461054980,12.45988871,228.6,228.48,245.79314248]
[1734461055181,5.17047506,228.67,228.53,10.09988871]
[1734461055385,2.1864,228.65,228.54,502.82125127]
[1734461055682,5.17047506,228.67,228.56,10.09988871]
[1734461055882,5.17047506,228.67,228.59,10.09988871]
[1734461056083,5.17047506,228.67,228.59,12.45988871]
[1734461056283,5.17047506,228.67,228.59,2.36]
[1734461056485,5.17047506,228.67,228.57,413.66543705]
[1734461056683,5.17047506,228.67,228.58,2.36]
[1734461057294,2.1865,228.65,228.59,2.1869]
[1734461057587,5.17047506,228.67,228.58,2.36]
[1734461057987,2.1866,228.64,228.58,4.547]
[1734461058695,2.1864,228.65,228.58,2.36]
[1734461058992,5.17047506,228.67,228.57,2.1871]
[1734461059184,15.27036377,228.67,228.56,179.93374546]
[1734461059488,2.36,228.69,228.56,2.36]
[1734461059489,10.09988871,228.64,228.56,2.36]
[1734461060081,5.18068634,228.65,228.56,12.45988871]
[1734461060286,2.36,228.69,228.57,594.39704944]
[1734461060486,2.36,228.69,228.57,466.56249434]
[1734461060688,2.36,228.69,228.56,426.12532576]
[1734461061190,2.36,228.69,228.56,12.45988871]
[1734461061392,2.1864,228.66,228.57,2.1871]
[1734461061696,2.36,228.69,228.57,2.1871]
[1734461061883,5.33688472,228.67,228.57,2.1871]
[1734461063394,2.1866,228.63,228.57,2.1871]
[1734461063692,5.33688472,228.67,228.56,2.36]
[1734461064085,15.43677343,228.67,228.56,2.36]
[1734461064789,10.09988871,228.64,228.51,596.71058251]
[1734461065093,12.45988871,228.64,228.52,2.36]
[1734461065296,2.1871,228.57,228.52,2.36]
[1734461065795,10.09988871,228.64,228.53,2.1874]
[1734461066093,2.1869,228.6,228.52,416.02543705]
[1734461066394,3.0333,228.66,228.58,2.187]
[1734461067388,2.1866,228.63,228.55,593.59918251]
[1734461067592,3.0333,228.66,228.55,179.93374546]
[1734461067792,3.0333,228.66,228.54,593.59918251]
[1734461068499,3.0333,228.66,228.53,593.59918251]
[1734461068692,3.0333,228.66,228.53,595.95918251]
[1734461068693,10.09988871,228.64,228.53,595.95918251]
[1734461069098,10.09988871,228.64,228.52,2.36]
[1734461069696,2.1873,228.56,228.52,2.36]
[1734461070096,2.1873,228.56,228.51,3.1114]
[1734461070300,10.09988871,228.61,228.51,3.1114]
[1734461070501,2.1872,228.57,228.51,3.1114]
[1734461071096,2.1872,228.57,228.51,5.2991]
[1734461071798,2.1872,228.57,228.52,1.09440525]
[1734461071997,2.1872,228.57,228.51,5.2991]
[1734461072198,2.187,228.58,228.52,1.09439224]
[1734461072395,10.09988871,228.61,228.53,1.09439224]
[1734461072596,12.45988871,228.64,228.51,3.1114]
[1734461072799,2.1868,228.61,228.52,1.09437978]
[1734461073001,12.45988871,228.64,228.53,1.09437978]
[1734461073200,2.1869,228.6,228.54,1.09437978]
[1734461073400,12.45988871,228.64,228.55,1.09437978]
[1734461073601,12.45988871,228.64,228.56,1.09437978]